[Event "Superbet Blitz Poland 2023"]
[Site "Warsaw"]
[Date "2023.05.24"]
[Round "5"]
[White "Rapport, Richard"]
[Black "Wojtaszek, Radoslaw"]
[Result "1-0"]
[ECO "D00"]
[WhiteElo "2745"]
[BlackElo "2670"]
[Annotator "TA"]
[PlyCount "61"]
[EventDate "2023.05.24"]
[EventType "tourn"]
[EventCountry "POL"]
[SourceTitle "playchess.com"]
[Source "ChessBase"]
[SourceQuality "1"]
[TimeControl "300+2"]

{[%evp 9,61,2,41,44,26,10,0,0,14,7,20,16,12,14,19,9,15,13,10,20,45,41,34,41,49,33,50,39,72,70,72,54,54,9,7,16,41,37,26,15,3,9,35,39,129,109,121,96,404,424,462,368,654,556]} 1. d4 {[%emt 0:00:02]} Nf6 {[%emt 0:00:01]} 2. Bg5 {[%emt 0:00:01]} d5 {[%emt 0:00:01]} 3. e3 {[%emt 0:00:07]} Bg4 {[%emt 0:00:02]} 4. Qd3 {[%emt 0:00:21] [#]} Nbd7 $146 {[%emt 0:00:22]} ({Predecessor:} 4... c6 5. Nd2 Nbd7 6. Ngf3 e6 7. Qb3 b5 8. a4 a6 9. Ne5 Nxe5 10. dxe5 h6 11. Bxf6 gxf6 12. exf6 {1-0 Terry,R (2504)-Bachmann,A (2599) Titled Tuesday intern op 08th June blitz 2021 (7)}) 5. h3 {[%emt 0:00:02]} Bh5 {[%emt 0:00:07][%cal Bg4h5,Bh5g6,Bg6c2][%mdl 32]} 6. Bxf6 {[%emt 0:00:02] D00: 1 d4 d5: Unusual lines.} exf6 {[%emt 0:00:49]} 7. Qf5 {[%emt 0:00:08]} Bg6 {[%emt 0:00:01]} 8. Qxd5 {[%emt 0:00:02] The position is equal.} Bxc2 {[%emt 0:00:06]} (8... c6 9. Qb3 $16) 9. Bc4 {[%emt 0:00:46][%csl Gc4][%cal Rd5f7,Bf1c4,Bc4b3,Bb3a2][%mdl 32]} ({Much weaker is} 9. Qxb7 Rb8 10. Qa6 Rxb2 $15) 9... Bb4+ {[%emt 0:00:08]} 10. Nc3 {[%emt 0:00:01][%csl Gc4][%cal Rd5f7]} O-O {[%emt 0:00:05]} 11. Rc1 {[%emt 0:00:03]} c6 {[%emt 0:00:44]} 12. Qf3 {[%emt 0:00:02]} Bg6 {[%emt 0:00:02]} 13. Nge2 {[%emt 0:00:02]} Nb6 {[%emt 0:00:06]} 14. Bb3 {[%emt 0:00:01]} Re8 {[%emt 0:00:10]} 15. O-O {[%emt 0:00:04]} a5 {[%emt 0:00:01]} 16. a3 {[%emt 0:00:06]} Bd6 {[%emt 0:00:01]} 17. Rfd1 {[%emt 0:00:09]} a4 {[%emt 0:00:13]} 18. Ba2 {[%emt 0:00:01]} Qd7 {[%emt 0:00:20]} 19. Nf4 {[%emt 0:00:18]} Ra5 {[%emt 0:00:36]} 20. Nxg6 {[%emt 0:00:10]} hxg6 {[%emt 0:00:01]} 21. Qg4 {[%emt 0:00:06]} Qxg4 {[%emt 0:00:05]} 22. hxg4 {[%emt 0:00:01]} Rg5 {[%emt 0:00:01]} 23. d5 {[%emt 0:00:18] Threatens to win with dxc6.} c5 {[%emt 0:00:40]} 24. Nb5 {[%emt 0:00:03]} Bf8 {[%emt 0:00:04]} 25. d6 {[%emt 0:00:07] Black must now prevent Nc7.} Rge5 {[%emt 0:00:13]} (25... c4 $5 {[%cal Rg5b5]} 26. Nc3 (26. Bxc4 Nxc4 27. Nc7 Rd8 $11) 26... Rd8 $14) 26. Rc2 {[%emt 0:00:20][%cal Bc1c2,Bc2c5,Bc5c8][%mdl 32]} Rd8 {[%emt 0:00:01] [#]} ({Black should try} 26... c4 $14) 27. f4 $1 $36 {[%emt 0:00:10][%mdl 2048] Keeping Black busy. White is much more active.} Rxe3 {[%emt 0:00:14]} 28. Rxc5 {[%emt 0:00:01]} Nc8 $2 {[%emt 0:00:17][%mdl 8192]} (28... Re2 $16 {is a better chance.}) 29. Kf2 $18 {[%emt 0:00:19] Black is weak on the light squares} Re4 {[%emt 0:00:07]} 30. Kf3 {[%emt 0:00:02]} Ree8 {[%emt 0:00:11] [#]} (30... Nxd6 31. Rcd5 (31. Rxd6 Bxd6 32. Nxd6 Re7 $16) 31... Rde8) 31. Rxc8 $1 {[%emt 0:00:07][%mdl 576] Decoy, Promotion.   Weighted Error Value: White=0.09 (flawless) /Black=0.47} 1-0

[Event "Superbet Blitz Poland 2023"]
[Site "Warsaw"]
[Date "2023.05.24"]
[Round "5"]
[White "Duda, Jan-Krzysztof"]
[Black "Vachier-Lagrave, Maxime"]
[Result "1-0"]
[ECO "A21"]
[WhiteElo "2724"]
[BlackElo "2742"]
[Annotator "TA"]
[PlyCount "105"]
[EventDate "2023.05.24"]
[EventType "tourn"]
[EventCountry "POL"]
[SourceTitle "playchess.com"]
[Source "ChessBase"]
[SourceQuality "1"]
[TimeControl "300+2"]

{[%evp 9,105,17,10,13,16,10,16,27,16,23,23,23,29,15,20,20,37,25,31,22,24,0,0,15,0,0,0,0,18,16,11,4,20,14,21,15,16,0,0,-9,-17,-12,19,0,0,0,20,14,10,10,12,10,14,8,41,41,41,41,39,41,41,41,637,642,744,726,829,660,899,809,819,750,726,663,1024,649,433,0,1083,689,1138,1149,1091,1074,918,766,1346,1038,1915,1453,6054,12636,5195,4017,29954,10559,5635,779]} 1. c4 {[%emt 0:00:01]} e5 {[%emt 0:00:01]} 2. Nc3 {[%emt 0:00:02]} Bb4 {[%emt 0:00:01]} 3. Nd5 {[%emt 0:00:04]} Be7 {[%emt 0:00:02]} 4. d4 {[%emt 0:00:23]} exd4 {[%emt 0:00:02]} 5. Qxd4 {[%emt 0:00:01]} Nf6 {[%emt 0:00:01]} 6. Nxe7 {[%emt 0:00:06] A21: English Opening: 1...e5 2 Nc3.} Qxe7 {[%emt 0:00:01]} 7. Bg5 {[%emt 0:00:12]} Nc6 {[%emt 0:00:02]} 8. Qc3 {[%emt 0:00:03] The position is equal.} d6 {[%emt 0:00:01]} 9. Bxf6 {[%emt 0:00:14]} Qxf6 {[%emt 0:00:02]} 10. Qxf6 {[%emt 0:00:02]} gxf6 {[%emt 0:00:01]} 11. e3 {[%emt 0:00:01]} Be6 {[%emt 0:00:12]} 12. Nf3 {[%emt 0:00:08]} O-O-O {[%emt 0:00:31]} 13. Nd4 {[%emt 0:00:08] [#]} Ne7 $146 {[%emt 0:00:30]} ({Predecessor:} 13... Ne5 14. b3 c5 15. Nb5 d5 16. cxd5 Bxd5 17. Nxa7+ Kb8 18. Nb5 Bc6 19. Nc3 Rhg8 {½-½ Yeremenko,A (2439)-Wharam,J (2459) ENG-EU email 2018 [7]}) 14. O-O-O {[%emt 0:00:21]} a6 {[%emt 0:00:16]} 15. g3 {[%emt 0:00:38]} c5 {[%emt 0:00:01]} 16. Nxe6 {[%emt 0:00:06]} fxe6 {[%emt 0:00:02]} 17. Bh3 {[%emt 0:00:04]} Kd7 {[%emt 0:00:01]} 18. Rd2 {[%emt 0:00:53]} Nc6 {[%emt 0:00:01]} 19. Rhd1 {[%emt 0:00:04]} Ke7 {[%emt 0:00:02]} 20. Bg2 {[%emt 0:00:07]} Na5 {[%emt 0:00:57]} 21. Bf1 {[%emt 0:00:02]} Rd7 {[%emt 0:00:04]} 22. Kc2 {[%emt 0:00:13]} Rb8 {[%emt 0:00:04]} 23. g4 {[%emt 0:00:41]} b5 {[%emt 0:00:06]} 24. b3 {[%emt 0:00:01]} bxc4 {[%emt 0:00:04]} 25. bxc4 {[%emt 0:00:01]} Nc6 {[%emt 0:00:52]} 26. Kc3 {[%emt 0:00:02]} (26. Rb1 {simplifies} Rxb1 27. Kxb1 f5 28. h3) 26... Rb4 {[%emt 0:00:15]} 27. a3 {[%emt 0:00:50]} Rb6 {[%emt 0:00:02]} (27... Ra4 $5 {[%cal Ra4a3]}) 28. Rb2 $1 {[%emt 0:00:05]} Rxb2 {[%emt 0:00:26]} 29. Kxb2 $11 {[%emt 0:00:01][%mdl 4096] Endgame KRB-KRN} Rb7+ {[%emt 0:00:02]} 30. Kc2 {[%emt 0:00:01]} Rb8 {[%emt 0:00:05]} 31. Be2 {[%emt 0:00:10]} a5 {[%emt 0:00:04]} 32. h4 {[%emt 0:00:03]} h6 {[%emt 0:00:20]} 33. f4 {[%emt 0:00:02]} Kd7 {[%emt 0:00:16]} 34. Rb1 {[%emt 0:00:14]} Rxb1 {[%emt 0:00:02]} 35. Kxb1 $14 {[%emt 0:00:01] KB-KN} d5 $2 {[%emt 0:00:16][%mdl 8192] [#] White stays focused until the end.} (35... Na7 $14) 36. cxd5 $1 $18 {[%emt 0:00:02]} Ne7 {[%emt 0:00:02]} 37. dxe6+ {[%emt 0:00:02]} Kxe6 {[%emt 0:00:01]} 38. Bc4+ {[%emt 0:00:03]} Kd6 {[%emt 0:00:02]} 39. Kc2 {[%emt 0:00:01]} Nc8 {[%emt 0:00:07]} 40. Kd3 {[%emt 0:00:03]} Nb6 {[%emt 0:00:15]} 41. Ba2 {[%emt 0:00:04]} Ke7 {[%emt 0:00:01]} 42. Ke4 {[%emt 0:00:01]} Na4 {[%emt 0:00:01]} 43. Kd3 {[%emt 0:00:03] Prevents Nc3.} (43. Bb3 $142 Nb6 44. g5 fxg5 45. fxg5 hxg5 46. hxg5) 43... Nb6 $1 {[%emt 0:00:01]} 44. Bb3 {[%emt 0:00:01]} Kd6 {[%emt 0:00:02]} 45. h5 {[%emt 0:00:03]} Ke7 {[%emt 0:00:01]} 46. e4 {[%emt 0:00:02]} Kf8 {[%emt 0:00:07]} 47. e5 {[%emt 0:00:02]} fxe5 {[%emt 0:00:06]} 48. fxe5 {[%emt 0:00:01]} Ke7 {[%emt 0:00:02]} 49. Ke4 {[%emt 0:00:03][%cal Og4g5] [#] Hoping for g5!} c4 {[%emt 0:00:03]} 50. Bc2 {[%emt 0:00:01]} Nd7 {[%emt 0:00:03]} 51. Kd4 {[%emt 0:00:02]} Nb6 {[%emt 0:00:00]} 52. Bf5 {[%emt 0:00:03] Kc5 would kill now.} Kf7 {[%emt 0:00:01]} 53. Ke4 {[%emt 0:00:04] Weighted Error Value: White=0.34/Black=0.56} (53. Kc5 $142 Na8 54. Kd6) 1-0

[Event "Superbet Blitz Poland 2023"]
[Site "Warsaw"]
[Date "2023.05.24"]
[Round "6"]
[White "Carlsen, Magnus"]
[Black "Rapport, Richard"]
[Result "1-0"]
[ECO "E90"]
[WhiteElo "2853"]
[BlackElo "2745"]
[Annotator "TA"]
[PlyCount "125"]
[EventDate "2023.05.24"]
[EventType "tourn"]
[EventCountry "POL"]
[SourceTitle "playchess.com"]
[Source "ChessBase"]
[SourceQuality "1"]
[TimeControl "300+2"]

{[%evp 18,125,55,46,69,67,89,76,80,73,70,66,69,51,54,56,43,35,59,43,74,74,74,74,74,25,25,53,102,68,101,109,121,120,118,114,123,108,108,108,132,110,200,200,193,193,192,192,186,170,169,36,36,36,33,28,28,29,29,0,0,0,0,0,0,0,0,0,0,0,0,0,0,0,0,0,0,0,0,0,0,0,118,118,224,224,1426,418,1445,0,72,56,1452,1434,1420,1358,1262,1038,29973,29975,29974,29975,29977,29978,29977,29979,29979,29980,29980,29981]} 1. c4 {[%emt 0:00:04]} g6 {[%emt 0:00:03]} 2. e4 {[%emt 0:00:09]} Bg7 {[%emt 0:00:09]} 3. d4 {[%emt 0:00:03]} d6 {[%emt 0:00:04]} 4. Nf3 {[%emt 0:00:03]} c5 {[%emt 0:00:02]} 5. d5 {[%emt 0:00:23]} Nf6 {[%emt 0:00:04]} 6. Nc3 {[%emt 0:00:02]} O-O {[%emt 0:00:03]} 7. h3 {[%emt 0:00:01]} e6 {[%emt 0:00:01]} 8. Bd3 {[%emt 0:00:02]} exd5 {[%emt 0:00:01]} 9. exd5 {[%emt 0:00:02]} Re8+ {[%emt 0:00:01]} 10. Be3 {[%emt 0:00:01]} Rxe3+ {[%emt 0:00:02] E90: King's Indian: Classical: Early deviations and 6 h3.} 11. fxe3 {[%emt 0:00:02]} Nbd7 {[%emt 0:00:02]} 12. O-O {[%emt 0:00:02]} Qe7 {[%emt 0:00:01] White is better.} 13. Qd2 {[%emt 0:00:04]} Nh5 {[%emt 0:00:03]} 14. Qf2 {[%emt 0:00:07]} Ne5 {[%emt 0:00:10]} 15. Be2 {[%emt 0:00:03]} (15. Nxe5 {with more complications.} Bxe5 16. Qc2 Ng3 17. Rf3) 15... Nxf3+ {[%emt 0:00:03]} 16. Bxf3 {[%emt 0:00:05]} (16. Qxf3 {keeps more tension.} Be5 17. Bd3 Ng3 18. Rfe1) 16... Nf6 {[%emt 0:00:02] [#]} 17. Rae1 $5 $146 {[%emt 0:00:19][%mdl 8] An interesting novelty.} ({Predecessor:} 17. e4 Nxe4 18. Qe1 Bd4+ 19. Kh1 Nf2+ 20. Rxf2 Qxe1+ 21. Rxe1 Bxf2 22. Re8+ Kg7 23. Ne4 {1-0 Kuzubov,Y (2643)-Pantsulaia,L (2553) PNWCC Online blitz JP 20th 2020 (4)}) 17... Nd7 {[%emt 0:00:04]} 18. Bg4 {[%emt 0:00:05]} Bxc3 {[%emt 0:00:06]} 19. bxc3 {[%emt 0:00:02]} Ne5 {[%emt 0:00:05][%csl LRc4,LRg4]} 20. Bxc8 {[%emt 0:00:33]} Rxc8 {[%emt 0:00:04]} 21. Qf6 {[%emt 0:00:02] Against Nd3} (21. Qe2 $16) 21... Qxf6 {[%emt 0:00:08]} 22. Rxf6 $11 {[%emt 0:00:02][%mdl 4096] Endgame KRR-KRN} Kf8 {[%emt 0:00:24]} (22... Nxc4 $14 {might be stronger.} 23. Re2 Rc7) 23. a4 {[%emt 0:00:03]} (23. Rxd6 $2 Ke7 $19) 23... Ke7 {[%emt 0:00:07]} 24. Rf4 {[%emt 0:00:02]} h5 {[%emt 0:00:18]} 25. Rb1 {[%emt 0:00:01]} Rc7 {[%emt 0:00:04]} 26. Kf1 {[%emt 0:00:05]} Nd3 {[%emt 0:00:38]} 27. Re4+ {[%emt 0:00:14]} Ne5 {[%emt 0:00:01]} 28. Ke2 {[%emt 0:00:11]} Kf6 {[%emt 0:00:20]} 29. Rf4+ {[%emt 0:00:05]} Ke7 {[%emt 0:00:05]} (29... Kg7 $16 {keeps fighting.} 30. Rbf1 b6) 30. g4 $18 {[%emt 0:00:08]} hxg4 {[%emt 0:00:20]} 31. hxg4 {[%emt 0:00:01]} g5 {[%emt 0:00:07]} 32. Rf5 {[%emt 0:00:15]} Nxg4 {[%emt 0:00:03]} 33. Rg1 {[%emt 0:01:21]} Ne5 {[%emt 0:00:02] [#]} 34. Rxe5+ {[%emt 0:00:01]} dxe5 $14 {[%emt 0:00:01]} 35. Rxg5 $18 {[%emt 0:00:01] KR-KR} Kf6 {[%emt 0:00:21]} 36. Rh5 {[%emt 0:00:37] Threatens to win with Kd3.} e4 {[%emt 0:00:26]} 37. Kf2 {[%emt 0:00:14]} Kg6 $1 {[%emt 0:00:02]} 38. Re5 {[%emt 0:00:02][%cal Of2g3]} f5 {[%emt 0:00:04]} 39. Kg3 {[%emt 0:00:01] Hoping for Kf4.} Rh7 {[%emt 0:00:05]} 40. Re8 {[%emt 0:00:05] aiming for Kf4.} Kf6 {[%emt 0:00:10]} 41. a5 {[%emt 0:00:09]} Rg7+ {[%emt 0:00:10]} 42. Kf2 {[%emt 0:00:01]} Rh7 {[%emt 0:00:07]} 43. Re6+ {[%emt 0:00:09]} Kg5 {[%emt 0:00:12]} 44. Kg3 {[%emt 0:00:02]} Rh1 {[%emt 0:00:04]} 45. Re7 {[%emt 0:00:09] Rg7+ is the strong threat.} Rf1 {[%emt 0:00:34] And now ...Rf3+ would win.} 46. Rxb7 {[%emt 0:00:02] Strongly threatening Rg7+.} Rf3+ {[%emt 0:00:01]} 47. Kg2 {[%emt 0:00:01]} Rxe3 {[%emt 0:00:01] White must now prevent ...Re2+.} 48. Rxa7 {[%emt 0:00:01]} f4 {[%emt 0:00:01]} 49. a6 {[%emt 0:00:04]} f3+ {[%emt 0:00:06]} (49... Re2+ $11 50. Kf1 Ra2) 50. Kg3 $16 {[%emt 0:00:04] White is more active.} Re2 {[%emt 0:00:14]} (50... Re1 $16) 51. Rf7 $18 {[%emt 0:00:02]} Rg2+ $2 {[%emt 0:00:11]} (51... Ra2 52. a7 Kg6) 52. Kh3 {[%emt 0:00:01] Rg7+ would kill now.} Kg6 {[%emt 0:00:01] Dodges Rg7+} (52... Ra2 $142 53. a7 Kg6) 53. Rf4 $2 {[%emt 0:00:06]} (53. Rf8 $18 {Intending Rg8+ and mate.} e3 54. Rxf3) 53... Ra2 {[%emt 0:00:06]} (53... Kg5 $1 $11 54. Rf7 (54. Rxe4 $2 {is the wrong capture.} Rg1 $19) 54... Ra2) 54. Rxe4 $16 {[%emt 0:00:03]} Rxa6 $2 {[%emt 0:00:02][%mdl 8192] This costs Black the game.} (54... Kf5 $14 55. Rh4 Rxa6) 55. Kg3 $18 {[%emt 0:00:03] White threatens Re6+ and mate.} Kf5 {[%emt 0:00:03] Prevents Re6} 56. Kxf3 {[%emt 0:00:04]} Ra3 {[%emt 0:00:01]} 57. Re3 {[%emt 0:00:02]} Ra4 {[%emt 0:00:02]} 58. d6 {[%emt 0:00:01] White mates.} Ra7 {[%emt 0:00:02]} 59. Rd3 {[%emt 0:00:03]} ({Weaker is} 59. Re7 Ra6 60. d7 Rd6 $18) 59... Ke6 {[%emt 0:00:02] [#]} 60. d7 $1 {[%emt 0:00:08]} Rxd7 {[%emt 0:00:01]} 61. Rxd7 {[%emt 0:00:01]} Kxd7 {[%emt 0:00:01]} 62. Kf4 {[%emt 0:00:00]} Ke6 {[%emt 0:00:08]} 63. Ke4 {[%emt 0:00:04] Weighted Error Value: White=0.17 (very precise) /Black=0.28 (precise)} 1-0

[Event "Superbet Blitz Poland 2023"]
[Site "Warsaw"]
[Date "2023.05.24"]
[Round "6"]
[White "So, Wesley"]
[Black "Duda, Jan-Krzysztof"]
[Result "1/2-1/2"]
[ECO "C54"]
[WhiteElo "2760"]
[BlackElo "2724"]
[Annotator "TA"]
[PlyCount "161"]
[EventDate "2023.05.24"]
[EventType "tourn"]
[EventCountry "POL"]
[SourceTitle "playchess.com"]
[Source "ChessBase"]
[SourceQuality "1"]
[TimeControl "300+2"]

{[%evp 10,161,14,15,15,15,10,0,14,13,6,18,8,7,8,11,8,8,20,10,9,18,20,27,35,11,31,0,0,-8,0,-12,0,0,0,0,0,0,0,0,0,0,0,0,12,10,10,-19,0,-32,0,0,0,0,0,0,0,0,0,0,35,0,0,0,0,-94,0,0,0,0,25,0,0,0,0,-54,0,-55,-57,-59,-54,-65,-65,-60,-44,-39,-38,-38,-43,-48,-41,-38,-26,-30,-16,-16,-16,-20,-19,-22,0,0,0,0,125,68,170,112,431,393,391,415,415,404,389,379,340,0,274,269,265,262,251,0,218,210,262,255,405,371,602,593,4914,564,631,29,27,30,31,8,8,0,0,0,0,0,0,0,0,0,0,0,0,0]} 1. e4 {[%emt 0:00:02]} e5 {[%emt 0:00:01]} 2. Nf3 {[%emt 0:00:02]} Nc6 {[%emt 0:00:01]} 3. Bc4 {[%emt 0:00:01]} Bc5 {[%emt 0:00:02]} 4. c3 {[%emt 0:00:01]} Nf6 {[%emt 0:00:02]} 5. d3 {[%emt 0:00:01]} d6 {[%emt 0:00:03]} 6. O-O {[%emt 0:00:02]} a5 {[%emt 0:00:02]} 7. Nbd2 {[%emt 0:00:04]} O-O {[%emt 0:00:09]} 8. h3 {[%emt 0:00:01]} h6 {[%emt 0:00:08]} 9. Bb5 {[%emt 0:00:02]} Bd7 {[%emt 0:00:12]} 10. Re1 {[%emt 0:00:03]} Ba7 {[%emt 0:00:17]} 11. Nf1 {[%emt 0:00:10]} Ne7 {[%emt 0:00:03]} 12. Bxd7 {[%emt 0:00:04]} Qxd7 {[%emt 0:00:24]} 13. Ng3 {[%emt 0:00:08]} Rfe8 {[%emt 0:00:06]} 14. d4 {[%emt 0:00:02]} Ng6 {[%emt 0:00:10]} 15. Be3 {[%emt 0:00:04]} a4 {[%emt 0:00:31]} 16. Qc2 {[%emt 0:00:08]} Qc6 {[%emt 0:00:07]} 17. Rad1 {[%emt 0:00:08]} b5 {[%emt 0:01:07]} 18. Rc1 {[%emt 0:00:19]} Bb6 {[%emt 0:00:05]} 19. Qd3 {[%emt 0:00:21]} Rab8 {[%emt 0:00:07]} 20. Re2 {[%emt 0:00:33]} Nf4 {[%emt 0:00:31]} 21. Bxf4 {[%emt 0:00:07]} exf4 {[%emt 0:00:01]} 22. Nf5 {[%emt 0:00:18]} Nxe4 {[%emt 0:00:15][%cal Oa4a3]} 23. Rce1 {[%emt 0:00:05][%cal Re2e4]} d5 {[%emt 0:00:04][%cal Oa4a3]} 24. Nd2 $1 {[%emt 0:00:03][%cal Rd2e4]} g6 {[%emt 0:00:08]} (24... a3 {keeps more tension.} 25. Nxe4 dxe4 26. Rxe4 axb2 27. Ne7+ Rxe7 28. Rxe7 Ba5) 25. Nxh6+ {[%emt 0:00:12]} Kg7 {[%emt 0:00:02]} 26. Ng4 {[%emt 0:00:02][%cal Rd2e4]} f5 {[%emt 0:00:26]} 27. Ne5 {[%emt 0:00:07]} Qd6 {[%emt 0:00:02]} 28. Nef3 {[%emt 0:00:14]} (28. Qxb5 Bxd4 29. Qd7+ Qxd7 30. Nxd7 Bxf2+ 31. Rxf2 Rbd8 32. Rxf4 (32. Nxe4 Rxd7 33. Rd1 Rxe4 $17) 32... Rxd7 $17) 28... c5 {[%emt 0:00:07]} 29. dxc5 {[%emt 0:00:15]} (29. Qxb5 $5 cxd4 30. cxd4 $11) 29... Bxc5 {[%emt 0:00:03]} (29... Qxc5 $5 {[%cal Re4f2]} 30. Nd4 b4 $15) 30. a3 {[%emt 0:00:28]} (30. Nd4 b4 $11) 30... Qb6 {[%emt 0:00:20][%cal Rc5f2]} 31. Nd4 $1 {[%emt 0:00:04]} b4 {[%emt 0:00:10]} 32. axb4 {[%emt 0:00:15]} Bxd4 {[%emt 0:00:03]} 33. cxd4 {[%emt 0:00:01]} Qxb4 {[%emt 0:00:05]} 34. Nf3 {[%emt 0:00:12]} Qc4 {[%emt 0:00:09]} (34... Qb3 {feels hotter.} 35. Ne5 Rb7 36. Qa6 Rb6) 35. Qd1 {[%emt 0:00:42]} (35. Ne5 $5 {[%cal Re5c4]} Qxd3 36. Nxd3 $14) 35... Rec8 {[%emt 0:00:01]} 36. Ne5 {[%emt 0:00:10]} Qb3 {[%emt 0:00:02]} 37. Qa1 {[%emt 0:00:13]} (37. Qd3 $11) 37... Rb4 {[%emt 0:00:01]} (37... Rc2 $1 $17 38. Kh2 f3 39. Nxf3 Rb4) 38. Rc1 $11 {[%emt 0:00:07]} Rxd4 $1 {[%emt 0:00:03]} 39. Kh2 {[%emt 0:00:09]} Re8 {[%emt 0:00:07]} 40. Nf3 {[%emt 0:00:08]} (40. Rc7+ {is more complex.} Kf6 41. Nd7+ Kg5 42. Qc1) 40... Rc4 {[%emt 0:00:01]} 41. Rxc4 {[%emt 0:00:01]} dxc4 {[%emt 0:00:01]} 42. Qc1 {[%emt 0:00:09]} (42. Nd4 $11 Qb4 43. f3) 42... Rd8 {[%emt 0:00:02]} ({Black should try} 42... Qd3 $15 43. Rc2 Rc8) 43. Qxf4 {[%emt 0:00:01]} (43. Rc2 $11) 43... Qb8 $1 $15 {[%emt 0:00:03]} 44. Qxb8 {[%emt 0:00:06]} (44. Rxe4 fxe4 45. Ne5 Qc7 46. Qxe4 Rd6 $19) 44... Rxb8 {[%emt 0:00:01][%mdl 4096] Endgame KRN-KRN} 45. Rc2 {[%emt 0:00:02] [#]} c3 $1 {[%emt 0:00:02][%mdl 64] Deflection} 46. bxc3 {[%emt 0:00:01]} a3 {[%emt 0:00:01]} 47. Ra2 {[%emt 0:00:02]} Ra8 {[%emt 0:00:02][%mdl 1024] Black has compensation.} ({But not} 47... Nxc3 48. Rxa3 Ne4 49. Ne5 $16) 48. c4 {[%emt 0:00:05]} Nc3 {[%emt 0:00:01]} 49. Ra1 {[%emt 0:00:01]} a2 {[%emt 0:00:01]} 50. Nd4 $1 {[%emt 0:00:02]} Ra4 {[%emt 0:00:05]} 51. Nb5 {[%emt 0:00:00]} Ne4 {[%emt 0:00:03]} ({Resist} 51... Rxc4 52. Nxc3 Rxc3 53. Rxa2 $14) 52. f3 {[%emt 0:00:03]} Nc5 {[%emt 0:00:03] ...Nb3 is the strong threat.} 53. Nc3 {[%emt 0:00:00][%csl LRa2,LRa4]} Ra3 $1 {[%emt 0:00:01]} 54. Nxa2 {[%emt 0:00:02]} (54. Rxa2 $2 {too greedy.} Rxc3 55. h4 Rxc4 $19) 54... f4 {[%emt 0:00:02]} 55. h4 {[%emt 0:00:01]} Kh6 {[%emt 0:00:01]} 56. Kh3 {[%emt 0:00:01]} Kh5 {[%emt 0:00:01] [#]} (56... Ra4 $11 {keeps the balance.}) 57. Rd1 {[%emt 0:00:01]} (57. Re1 $1 $16 {[%cal Re1e5]} g5 58. Re5) 57... Ne6 {[%emt 0:00:04]} (57... g5 $14 58. Rd5 Ne4) 58. Nb4 {[%emt 0:00:02]} (58. Rd5+ $18 g5 59. Nb4) 58... Rc3 $2 {[%emt 0:00:02][%mdl 8192]} (58... g5 $16) 59. Nd5 {[%emt 0:00:02]} Rxc4 {[%emt 0:00:01]} 60. Nf6+ {[%emt 0:00:01]} Kh6 {[%emt 0:00:01]} 61. Rd7 {[%emt 0:00:01][%csl Gf6][%cal Rd7h7]} Ng7 {[%emt 0:00:02]} 62. Ng4+ {[%emt 0:00:01]} Kh7 {[%emt 0:00:01]} 63. Nf6+ {[%emt 0:00:01]} Kh6 {[%emt 0:00:01]} 64. Rf7 {[%emt 0:00:02]} Ra4 {[%emt 0:00:06]} 65. Ng4+ {[%emt 0:00:03]} Kh7 {[%emt 0:00:01]} 66. Nf6+ {[%emt 0:00:01]} Kh6 {[%emt 0:00:01]} 67. Kg4 {[%emt 0:00:04]} Rc4 {[%emt 0:00:01]} 68. Nd5 {[%emt 0:00:03][%cal Od5e7] Ne7! would be deadly.} Nf5 {[%emt 0:00:01]} (68... Rc2 {was necessary.} 69. Nxf4 Nh5) 69. Nxf4 $18 {[%emt 0:00:06]} Ne3+ $2 {[%emt 0:00:06]} (69... Rd4 70. Rf6 Rd6) 70. Kh3 {[%emt 0:00:02]} Nf5 {[%emt 0:00:02]} 71. g3 {[%emt 0:00:01]} (71. g4 $142 {[%csl Gh4][%cal Rg4g5]} Nxh4 72. Ne6 Nxf3 73. Rxf3) 71... Rc3 {[%emt 0:00:02] [#]} 72. Rf6 $2 {[%emt 0:00:02]} (72. Nd5 $1 $18 {[%cal Rd5c3]} Ra3 73. Nf6) 72... Rxf3 $11 {[%emt 0:00:01]} 73. Rxg6+ {[%emt 0:00:01]} Kh7 {[%emt 0:00:01]} 74. Rg4 {[%emt 0:00:07] And now Ne6 would win.} Ne3 $1 {[%emt 0:00:03][%cal Of3f1] ( -> ...Rf1!)} 75. Rg5 {[%emt 0:00:02]} Rf1 {[%emt 0:00:01][%cal Rf1h1]} 76. Kh2 {[%emt 0:00:02] Against Rh1+. Strongly threatening Nd5.} Rf2+ $1 {[%emt 0:00:02]} 77. Kh3 {[%emt 0:00:02]} (77. Kg1 $5 Rf1+ $8 78. Kh2 Rf2+ 79. Kh3 $11) 77... Rf1 {[%emt 0:00:00][%cal Rf1h1]} 78. Rh5+ {[%emt 0:00:03]} (78. Kh2 $5 Rf2+ $8 79. Kh3 Rf1 $11) 78... Kg8 {[%emt 0:00:01][%cal Rf1h1]} 79. Kh2 {[%emt 0:00:01] Inhibits Rh1+. aiming for Nd5.} Rf2+ {[%emt 0:00:01]} 80. Kh3 {[%emt 0:00:02] Black must now prevent Rg5+.} (80. Kg1 $5 Rf1+ $8 81. Kh2 Rf2+ 82. Kh3 $11) 80... Rf1 {[%emt 0:00:01][%cal Rf1h1]} 81. Kh2 {[%emt 0:00:02] Against Rh1+} 1/2-1/2